{"text_format":"1","workbook":"xlsx","n_sheets":3,"sheets":["FICHA_SIMPLIFICADA","Base_datos","D1"],"not_rendered":{"charts":0,"images":1,"macros":1,"external_links":2,"defined_names":5,"comments":0,"pivot_tables":0},"unopened":[],"bounds":{"document_bytes":16777216,"sheet_cells":100000,"rows_first":2000,"rows_last":500,"rows_between":2000,"halvings":0,"cell_chars":16384,"cell_head_chars":4096},"cells_cut":0,"cells_raw":0,"read":"whole","date_system":"1900"}

{"sheet":"FICHA_SIMPLIFICADA","index":0,"n_rows":469,"n_cols":27,"rows_kept":469,"cut":false,"hidden":false,"merged":[[8,2,8,7],[8,8,8,9],[9,8,9,9],[8,10,8,11],[8,12,8,13],[9,2,9,7],[10,2,10,7],[11,2,11,7],[9,10,9,11],[10,10,10,11],[11,10,11,11],[9,12,9,13],[10,12,10,13],[11,12,11,13],[10,8,10,9],[11,8,11,9],[459,2,459,14],[460,2,460,14],[468,10,468,12],[433,3,433,5],[438,2,442,14],[445,2,449,14],[454,2,454,14],[455,2,455,14],[456,2,456,14],[463,11,463,12],[408,2,408,5],[408,6,408,10],[408,11,408,12],[424,3,424,5],[419,10,419,11],[416,10,416,11],[457,2,457,14],[421,3,421,5],[420,3,420,5],[420,2,424,2],[423,3,423,5],[414,6,414,9],[416,12,419,14],[431,10,433,11],[429,3,429,5],[430,3,430,5],[427,3,427,5],[428,3,428,5],[429,10,430,11],[427,10,428,11],[425,12,433,14],[422,3,422,5],[417,6,417,7],[425,3,425,5],[407,2,407,5],[407,6,407,10],[407,11,407,12],[405,6,405,10],[406,6,406,10],[400,5,400,8],[398,5,398,8],[404,11,404,12],[405,11,405,12],[406,11,406,12],[404,2,404,5],[405,2,405,5],[406,2,406,5],[404,6,404,10],[370,2,373,14],[377,2,382,3],[381,4,381,6],[381,7,381,9],[381,10,381,14],[382,4,382,6],[382,7,382,9],[382,10,382,14],[377,10,377,14],[378,10,378,14],[377,4,377,6],[378,4,378,6],[379,4,379,6],[379,10,379,14],[377,7,377,9],[378,7,378,9],[379,7,379,9],[375,2,375,10],[375,11,375,12],[380,4,380,6],[380,7,380,9],[380,10,380,14],[265,6,265,8],[301,2,301,5],[303,9,303,14],[305,2,317,2],[318,2,323,2],[318,3,318,5],[319,3,319,5],[320,3,320,5],[321,3,321,5],[322,3,322,5],[323,3,323,5],[295,2,300,2],[298,3,298,5],[299,3,299,5],[300,3,300,5],[296,3,296,5],[297,3,297,5],[281,3,281,5],[282,3,282,5],[283,3,283,5],[284,3,284,5],[285,3,285,5],[286,3,286,5],[287,3,287,5],[250,5,262,5],[253,6,253,8],[258,6,258,8],[252,6,252,8],[254,6,254,8],[256,6,256,8],[250,6,250,8],[259,6,259,8],[260,6,260,8],[262,6,262,8],[251,6,251,8],[261,6,261,8],[257,6,257,8],[255,6,255,8],[137,2,140,14],[143,2,143,14],[152,3,152,4],[153,3,153,4],[154,2,154,4],[149,3,149,4],[151,3,151,4],[114,2,114,5],[129,6,129,7],[129,8,129,10],[129,2,129,5],[128,2,128,5],[109,2,109,5],[110,2,110,5],[111,2,111,5],[112,2,112,5],[113,2,113,5],[112,8,112,9],[113,8,113,9],[114,8,114,9],[111,8,111,9],[109,6,109,7],[35,2,35,4],[41,2,41,4],[96,2,96,10],[96,13,96,14],[95,2,95,10],[83,3,83,8],[79,3,79,8],[102,2,102,14],[118,2,122,14],[112,10,112,11],[113,10,113,11],[114,10,114,11],[111,10,111,11],[103,2,103,14],[108,2,108,14],[42,5,42,14],[53,7,53,8],[63,2,65,5],[65,6,65,14],[69,2,69,5],[70,7,71,14],[72,7,73,14],[74,7,75,14],[69,7,69,14],[99,2,99,14],[100,2,100,14],[15,2,15,4],[14,2,14,4],[35,5,35,14],[36,5,36,14],[66,2,67,5],[80,3,80,8],[80,10,80,13],[85,10,85,13],[86,10,86,13],[87,10,87,13],[94,13,94,14],[95,13,95,14],[94,2,94,10],[70,2,71,5],[72,2,73,5],[24,3,24,4],[18,3,18,4],[29,5,29,11],[14,5,14,8],[14,9,14,14],[15,5,15,8],[15,9,15,14],[86,3,86,8],[87,3,87,8],[79,10,79,13],[82,3,82,8],[82,10,82,13],[88,3,88,8],[88,10,88,13],[0,1,0,15],[1,1,1,14],[2,1,2,15],[3,2,3,14],[51,5,51,14],[63,6,63,14],[64,6,64,14],[66,6,66,14],[67,6,67,14],[48,5,48,14],[50,5,50,14],[33,5,33,14],[34,5,34,14],[39,5,39,14],[40,5,40,14],[41,5,41,14],[23,3,23,4],[18,10,19,14],[20,10,20,14],[22,10,22,14],[24,5,24,9],[83,10,83,13],[49,6,49,7],[49,9,49,10],[49,12,49,14],[45,5,45,14],[46,5,46,14],[47,5,47,14],[18,5,19,6],[18,8,19,9],[18,7,19,7],[21,5,21,6],[23,5,23,9],[21,10,21,14],[20,8,20,9],[21,8,21,9],[22,8,22,9],[20,5,20,6],[22,5,22,6],[156,3,156,4],[157,3,157,4],[53,2,53,4],[59,7,59,8],[59,10,59,11],[60,7,60,8],[60,10,60,11],[60,2,60,6],[110,6,110,7],[110,8,110,9],[110,10,110,11],[111,6,111,7],[112,6,112,7],[113,6,113,7],[114,6,114,7],[109,8,109,9],[109,10,109,11],[128,6,128,7],[128,8,128,10],[101,2,101,14],[89,3,89,8],[89,10,89,13],[93,2,93,14],[85,3,85,8],[158,3,158,4],[159,3,159,4],[164,3,164,4],[165,3,165,4],[166,3,166,4],[169,2,169,4],[160,3,160,4],[161,3,161,4],[162,2,162,4],[167,3,167,4],[168,3,168,4],[171,2,171,4],[181,2,184,14],[187,2,187,14],[191,3,191,4],[195,3,195,4],[198,3,198,4],[199,3,199,4],[193,3,193,4],[194,3,194,4],[196,2,196,4],[200,3,200,4],[203,3,203,4],[206,3,206,4],[207,3,207,4],[201,3,201,4],[202,3,202,4],[204,2,204,4],[208,3,208,4],[209,3,209,4],[210,3,210,4],[211,2,211,4],[213,2,213,4],[219,3,219,4],[223,3,223,4],[226,3,226,4],[227,3,227,4],[228,3,228,4],[231,3,231,4],[263,6,263,8],[234,3,234,4],[235,3,235,4],[221,3,221,4],[222,3,222,4],[224,2,224,4],[229,3,229,4],[230,3,230,4],[232,2,232,4],[236,3,236,4],[237,3,237,4],[238,3,238,4],[239,2,239,4],[241,2,241,4],[247,2,247,14],[248,2,248,5],[248,6,249,8],[248,9,248,10],[248,11,248,12],[248,13,249,13],[248,14,249,14],[250,2,262,2],[250,3,262,3],[250,4,262,4],[305,3,305,5],[264,6,264,8],[288,3,288,5],[289,3,289,5],[290,3,290,5],[291,3,291,5],[292,3,292,5],[293,3,293,5],[294,3,294,5],[274,2,274,14],[275,2,277,14],[280,9,280,14],[282,2,294,2],[263,2,268,2],[263,3,268,3],[263,4,268,4],[263,5,268,5],[266,6,266,8],[267,6,267,8],[268,6,268,8],[269,2,271,5],[269,6,269,13],[270,6,270,13],[271,6,271,13],[295,3,295,5],[328,3,328,4],[326,2,327,4],[326,5,326,14],[328,2,334,2],[329,3,329,4],[330,3,330,4],[331,3,331,4],[332,3,332,4],[333,3,333,4],[334,3,334,4],[312,3,312,5],[313,3,313,5],[314,3,314,5],[315,3,315,5],[316,3,316,5],[317,3,317,5],[304,3,304,5],[306,3,306,5],[307,3,307,5],[308,3,308,5],[309,3,309,5],[310,3,310,5],[311,3,311,5],[335,3,335,4],[336,3,336,4],[337,3,337,4],[335,2,341,2],[338,3,338,4],[339,3,339,4],[340,3,340,4],[341,3,341,4],[361,4,361,6],[362,4,362,6],[342,2,343,2],[342,3,342,4],[343,3,343,4],[346,7,346,8],[351,2,354,14],[356,7,356,8],[360,2,360,14],[361,2,361,3],[362,2,364,3],[363,4,363,6],[364,4,364,6],[423,6,423,7],[424,6,424,7],[416,6,416,7],[420,12,424,14],[426,3,426,5],[425,2,433,2],[425,7,425,9],[426,7,426,9],[427,7,427,9],[428,7,428,9],[429,7,429,9],[430,7,430,9],[431,7,431,9],[433,7,433,9],[431,3,431,5],[432,3,432,5],[432,7,432,9],[388,2,388,14],[389,2,389,14],[390,2,390,14],[391,2,391,14],[392,2,392,14],[417,10,417,11],[416,3,417,5],[416,2,417,2],[468,3,468,6],[425,10,426,11],[420,10,424,11],[418,10,418,11],[418,2,419,2],[418,3,419,5],[415,6,415,7],[414,3,415,5],[414,2,415,2],[414,10,415,11],[414,12,415,14],[418,6,418,7],[419,6,419,7],[420,6,420,7],[421,6,421,7],[422,6,422,7]]}
[null,"FICHA TÉCNICA SIMPLIFICADA DE PROYECTO DE INVERSIÓN - SECTOR EDUCACIÓN"]
[null,"MONTOS <=750 UIT"]
[null,"(La información registrada tiene carácter de Declaración Jurada - DS. N° 027-2017-EF)  "]
[]
[null,"I.  DATOS GENERALES"]
[]
[null,null,"1.1. ARTICULACIÓN CON EL PROGRAMA MULTIANUAL DE INVERSIONES (PMI)"]
[]
[null,null,"SERVICIO EDUCATIVO CON BRECHA IDENTIFICADA",null,null,null,null,null,"TIPO DE INTERVENCIÓN",null,"INDICADOR 1",null,"INDICADOR 2 "]
[null,null,null,null,null,null,null,null,null,null,{"$f":"++IF(C10=\"\",\"\",IF(I10=\"\",\"\",VLOOKUP(O10,'D1'!$D$61:$H$72,4,FALSE)))","v":""},null,{"$f":"++IF(C10=\"\",\"\",IF(I10=\"\",\"\",VLOOKUP(O10,'D1'!$D$61:$H$72,5,FALSE)))","v":""},null,{"$f":"+C10&I10","v":""}]
[null,null,null,null,null,null,null,null,null,null,{"$f":"++IF(C11=\"\",\"\",IF(I11=\"\",\"\",VLOOKUP(O11,'D1'!$D$61:$H$72,4,FALSE)))","v":""},null,{"$f":"++IF(C11=\"\",\"\",IF(I11=\"\",\"\",VLOOKUP(O11,'D1'!$D$61:$H$72,5,FALSE)))","v":""},null,{"$f":"+C11&I11","v":""}]
[null,null,null,null,null,null,null,null,null,null,{"$f":"++IF(C12=\"\",\"\",IF(I12=\"\",\"\",VLOOKUP(O12,'D1'!$D$61:$H$72,4,FALSE)))","v":""},null,{"$f":"++IF(C12=\"\",\"\",IF(I12=\"\",\"\",VLOOKUP(O12,'D1'!$D$61:$H$72,5,FALSE)))","v":""},null,{"$f":"+C12&I12","v":""}]
[]
[null,null,"1.2. NOMBRE DEL PROYECTO"]
[null,null,"NATURALEZA DE INTERVENCIÓN",null,null,"OBJETO",null,null,null,"LOCALIZACIÓN"]
[]
[]
[null,null,"1.2.1. Código(s) de Local(es) Educativo(s)"]
[null,null,null,"Inicial / Primaria / Secundaria",null,"¿El terreno del local educativo tiene inscripción registral?",null,"Si no se cuenta con partida resgitral, indique el tipo de documento que acredita la propiedad","Número de Partida Registral u otro documento que ceritifca la propiedad",null,"Entidad que acredita la propiedad"]
[null,null,null,"Código Modular","Código(s) Local(es)"]
[]
[]
[]
[null,null,null,"M2 de terreno (según partida registral)"]
[null,null,null,"M2 de terreno (según plano actualizado)"]
[]
[null,null,"1.3. RESPONSABILIDAD FUNCIONAL"]
[null,null,null,"Función",null,"22-Educación"]
[null,null,null,"División Funcional",null,"047-Educación Básica "]
[null,null,null,"Grupo Funcional"]
[null,null,null,"Sector Responsable",null,"Educación"]
[]
[null,null,"1.4. UNIDAD FORMULADORA (UF)"]
[null,null,"Sector"]
[null,null,"Pliego"]
[null,null,"Nombre de la UF (Unid. Orgánica a la que pertenece)"]
[null,null,"Responsable de la UF"]
[]
[null,null,"1.5. UNIDAD EJECUTORA DE INVERSIONES (UEI) RECOMENDADA"]
[null,null,"Sector"]
[null,null,"Pliego"]
[null,null,"Nombre de la UEI (Unid. Orgánica a la que pertenece)"]
[null,null,"Responsable de la UEI"]
[]
[null,null,"1.6. UBICACIÓN GEOGRÁFICA"]
[null,null,"Departamento"]
[null,null,"Provincia"]
[null,null,"Distrito"]
[null,null,"Localidad"]
[null,null,"Coordenadas UTM - WGS84 y cota",null,null,"(X):",null,null,"(Y):",null,null,"Cota (msnm):"]
[null,null,"Zona Urbana/Rural"]
[null,null,"Región (Costa, Sierra, Selva)"]
[]
[null,null," Adjuntó Plano y/o  croquis  de ubicación?",null,null,null,null,"Localización apta para intervenir"]
[]
[null,"II.  IDENTIFICACION"]
[]
[null,null,"2.1. PROBLEMA CENTRAL, CAUSAS Y EFECTOS"]
[]
[null,null,"2.1.1. DESCRIPCION DEL PROBLEMA CENTRAL",null,null,null,null,"Indicador 1",null,"Valor 1 (%)","Indicador 2",null,"Valor 2"]
[null,null,{"$f":"IF(C16=\"\",\"\",HLOOKUP(C16,Base_datos!D17:H18,2,FALSE))","v":""},null,null,null,null,{"$f":"+IF(C61=\"\",\"\",VLOOKUP(C61,Base_datos!E3:G6,2,FALSE))","v":""},null,0,{"$f":"+IF(C61=\"\",\"\",VLOOKUP(C61,Base_datos!E3:G6,3,FALSE))","v":""},null,0]
[]
[null,null,"2.1.1.A. Causas Directas",null,null,null,"2.1.1.B. Causas indirectas"]
[null,null,null,null,null,null,"Equipamiento educativo Inadecuado "]
[]
[]
[]
[]
[]
[null,null,"2.1.1.C. Efectos Directos",null,null,null,null,"2.1.2.D. Efectos Indirectos"]
[]
[]
[]
[]
[]
[]
[]
[null,null,"2.2. POBLACIÓN AFECTADA Y POBLACIÓN OBJETIVO"]
[null,null,"A. Población Afectada"]
[null,null,null,"Tipo de población",null,null,null,null,null,"Cantidad","Fuente de información"]
[]
[null,null,"B. Población Objetivo"]
[null,null,null,"Tipo de población",null,null,null,null,null,"Cantidad","Fuente de información"]
[]
[null,null,"C. Características de la población objetivo"]
[null,null,null,"Tipo de clasificación (edad o grupos de edad, género, grupos étnico, población vulnerable)",null,null,null,null,null,"Número de Personas","Fuente de información"]
[]
[]
[]
[]
[]
[null,null,"2.3. DEFINICIÓN DE LOS OBJETIVOS DEL PROYECTO"]
[null,null,"2.3.1. DESCRIPCIÓN DEL OBJETIVO CENTRAL"]
[]
[null,null,"Principales indicadores del Objetivo (máximo 3)",null,null,null,null,null,null,null,null,"U.Medida","Meta","Fuente de Verificación"]
[null,null,{"$f":"+H61","v":""},null,null,null,null,null,null,null,null,"Porcentaje"]
[null,null,{"$f":"+IF(K61=\"\",\"\",K61)","v":""},null,null,null,null,null,null,null,null,"Porcentaje"]
[]
[null,null,"2.3.2. Medios Fundamentales"]
[null,null,{"$f":"+IF(G64=\"\",\"\",VLOOKUP(G64,'D1'!$E$77:$F$86,2,FALSE))","v":"Equipamiento educativo adecuado "}]
[null,null,{"$f":"+IF(G65=\"\",\"\",VLOOKUP(G65,'D1'!$E$77:$F$86,2,FALSE))","v":""}]
[null,null,{"$f":"+IF(G66=\"\",\"\",VLOOKUP(G66,'D1'!$E$77:$F$86,2,FALSE))","v":""}]
[null,null,{"$f":"+IF(G67=\"\",\"\",VLOOKUP(G67,'D1'!$E$77:$F$86,2,FALSE))","v":""}]
[null,null,{"$f":"+IF(G68=\"\",\"\",VLOOKUP(G68,'D1'!$E$77:$F$86,2,FALSE))","v":""}]
[]
[]
[null,null,"2.4. DESCRIPCIÓN DE LAS ALTERNATIVAS DE SOLUCIÓN AL PROBLEMA"]
[]
[null,null,"Alternativa : Descripción"]
[null,null,"MEDIOS FUNDAMENTALES",null,null,null,"ACCIÓN 1",null,"ACCIÓN 2",null,"ACCIÓN 3",null,"ACCIÓN 4","ACCIÓN 5","ACCIÓN 6"]
[null,null,{"$f":"+C100","v":"Equipamiento educativo adecuado "},null,null,null,null,null,null,null,null,null,null,null,null,null,null,null,null,null,null,{"$f":"+HLOOKUP($C$111,Base_datos!$C$23:$M$29,2,FALSE)","v":"Implementación de equipamiento educativo"},{"$f":"+HLOOKUP($C$112,Base_datos!$C$23:$M$29,2,FALSE)","v":{"$error":"#N/A"}},{"$f":"+HLOOKUP($C$113,Base_datos!$C$23:$M$29,2,FALSE)","v":{"$error":"#N/A"}},{"$f":"+HLOOKUP(#REF!,Base_datos!$C$23:$M$29,2,FALSE)","v":{"$error":"#REF!"}},{"$f":"+HLOOKUP($C$114,Base_datos!$C$23:$M$29,2,FALSE)","v":{"$error":"#N/A"}},{"$f":"+HLOOKUP($C$115,Base_datos!$C$23:$M$29,2,FALSE)","v":{"$error":"#N/A"}}]
[null,null,{"$f":"+C101","v":""},null,null,null,null,null,null,null,null,null,null,null,null,null,null,null,null,null,null,{"$f":"+HLOOKUP($C$111,Base_datos!$C$23:$M$29,3,FALSE)","v":"Implementación de equipamiento administrativo"},{"$f":"+HLOOKUP($C$112,Base_datos!$C$23:$M$29,3,FALSE)","v":{"$error":"#N/A"}},{"$f":"+HLOOKUP($C$113,Base_datos!$C$23:$M$29,3,FALSE)","v":{"$error":"#N/A"}},{"$f":"+HLOOKUP(#REF!,Base_datos!$C$23:$M$29,3,FALSE)","v":{"$error":"#REF!"}},{"$f":"+HLOOKUP($C$114,Base_datos!$C$23:$M$29,3,FALSE)","v":{"$error":"#N/A"}},{"$f":"+HLOOKUP($C$115,Base_datos!$C$23:$M$29,3,FALSE)","v":{"$error":"#N/A"}}]
[null,null,{"$f":"+C102","v":""},null,null,null,null,null,null,null,null,null,null,null,null,null,null,null,null,null,null,{"$f":"+HLOOKUP($C$111,Base_datos!$C$23:$M$29,4,FALSE)","v":"Programa de operación y mantenimiento del equipamiento"},{"$f":"+HLOOKUP($C$112,Base_datos!$C$23:$M$29,4,FALSE)","v":{"$error":"#N/A"}},{"$f":"+HLOOKUP($C$113,Base_datos!$C$23:$M$29,4,FALSE)","v":{"$error":"#N/A"}},{"$f":"+HLOOKUP(#REF!,Base_datos!$C$23:$M$29,4,FALSE)","v":{"$error":"#REF!"}},{"$f":"+HLOOKUP($C$114,Base_datos!$C$23:$M$29,4,FALSE)","v":{"$error":"#N/A"}},{"$f":"+HLOOKUP($C$115,Base_datos!$C$23:$M$29,4,FALSE)","v":{"$error":"#N/A"}}]
[null,null,{"$f":"+C103","v":""},null,null,null,null,null,null,null,null,null,null,null,null,null,null,null,null,null,null,{"$f":"+HLOOKUP($C$111,Base_datos!$C$23:$M$29,6,FALSE)","v":"No requiere"},{"$f":"+HLOOKUP($C$112,Base_datos!$C$23:$M$29,6,FALSE)","v":{"$error":"#N/A"}},{"$f":"+HLOOKUP($C$113,Base_datos!$C$23:$M$29,6,FALSE)","v":{"$error":"#N/A"}},{"$f":"+HLOOKUP(#REF!,Base_datos!$C$23:$M$29,6,FALSE)","v":{"$error":"#REF!"}},{"$f":"+HLOOKUP($C$114,Base_datos!$C$23:$M$29,6,FALSE)","v":{"$error":"#N/A"}},{"$f":"+HLOOKUP($C$115,Base_datos!$C$23:$M$29,6,FALSE)","v":{"$error":"#N/A"}}]
[null,null,{"$f":"+C104","v":""},null,null,null,null,null,null,null,null,null,null,null,null,null,null,null,null,null,null,{"$f":"+HLOOKUP($C$111,Base_datos!$C$23:$M$29,7,FALSE)","v":"No requiere"},{"$f":"+HLOOKUP($C$112,Base_datos!$C$23:$M$29,7,FALSE)","v":{"$error":"#N/A"}},{"$f":"+HLOOKUP($C$113,Base_datos!$C$23:$M$29,7,FALSE)","v":{"$error":"#N/A"}},{"$f":"+HLOOKUP(#REF!,Base_datos!$C$23:$M$29,7,FALSE)","v":{"$error":"#REF!"}},{"$f":"+HLOOKUP($C$114,Base_datos!$C$23:$M$29,7,FALSE)","v":{"$error":"#N/A"}},{"$f":"+HLOOKUP($C$115,Base_datos!$C$23:$M$29,7,FALSE)","v":{"$error":"#N/A"}}]
[null,null,null,null,null,null,null,null,null,null,null,null,null,null,null,null,null,null,null,null,null,"No requiere","No requiere","No requiere","No requiere","No requiere","No requiere"]
[]
[null,null,"2.5. REQUERIMIENTOS INSTITUCIONALES Y/O NORMATIVOS"]
[]
[]
[]
[]
[]
[]
[]
[null,"III.  FORMULACION Y EVALUACION"]
[]
[null,null,"3.1. HORIZONTE DE EVALUACIÓN"]
[null,null,"Descripción",null,null,null,"Horizonte de inversión",null,"Horizonte de evaluación"]
[null,null,"Número de años ",null,null,null,1,null,{"$f":"IF(G130=\"\",\"\",10+G130)","v":11}]
[]
[]
[null,null,"3.2. ESTUDIO DE MERCADO DEL SERVICIO PÚBLICO"]
[]
[]
[null,null,"3.2.1. ANÁLISIS DE LA DEMANDA"]
[null,null,"3.2.1.1.  Descripción de las fuentes de información y la metodología empleada en la estimación de la demanda"]
[]
[]
[]
[]
[]
[null,null,"3.2.1.2. Principales parámetros y supuestos considerados para la proyección de la demanda"]
[]
[]
[]
[]
[]
[null,null,"3.2.1.3. Proyección de la Población Demandante Efectiva del Servicio Educativo"]
[null,null,"Población Escolar","Unidad de Medida ",null,"Año 1","Año 2","Año 3","Año 4","Año 5","Año 6","Año 7","Año 8","Año 9","Año 10"]
[null,null,"A. Servicio Educativo de Nivel Inicial"]
[null,null,"3 años","Alumno"]
[null,null,"4 años","Alumno"]
[null,null,"5 años","Alumno"]
[null,null,"Sub Total",null,null,{"$f":"SUM(F152:F154)","v":0},{"$f":"SUM(G152:G154)","v":0},{"$f":"SUM(H152:H154)","v":0},{"$f":"SUM(I152:I154)","v":0},{"$f":"SUM(J152:J154)","v":0},0,0,0,0,0]
[null,null,"B. Servicio Educativo de Nivel Primaria"]
[null,null,"1er grado","Alumno"]
[null,null,"2do grado","Alumno"]
[null,null,"3er grado","Alumno"]
[null,null,"4to grado","Alumno"]
[null,null,"5to grado","Alumno"]
[null,null,"6to grado","Alumno"]
[null,null,"Sub Total",null,null,{"$f":"SUM(F157:F162)","v":0},{"$f":"SUM(G157:G162)","v":0},{"$f":"SUM(H157:H162)","v":0},{"$f":"SUM(I157:I162)","v":0},{"$f":"SUM(J157:J162)","v":0},0,0,0,0,0]
[null,null,"C. Servicio Educativo de Nivel Secundaria"]
[null,null,"1er grado","Alumno"]
[null,null,"2do grado","Alumno"]
[null,null,"3er grado","Alumno"]
[null,null,"4to grado","Alumno"]
[null,null,"5to grado","Alumno"]
[null,null,"Sub Total",null,null,{"$f":"SUM(F165:F169)","v":0},{"$f":"SUM(G165:G169)","v":0},{"$f":"SUM(H165:H169)","v":0},{"$f":"SUM(I165:I169)","v":0},{"$f":"SUM(J165:J169)","v":0},0,0,0,0,0]
[]
[null,null,"Total PDE",null,null,{"$f":"+F155+F163+F170","v":0},{"$f":"+G155+G163+G170","v":0},{"$f":"+H155+H163+H170","v":0},{"$f":"+I155+I163+I170","v":0},{"$f":"+J155+J163+J170","v":0},0,0,0,0,0]
[]
[]
[null,null,"3.2.2. ANÁLISIS DE LA OFERTA"]
[null,null,"3.2.2.1. Principales factores de producción que determinan la oferta actual del servicio educativo. "]
[]
[]
[]
[]
[null,null,"3.2.2.2.  Descripción de las fuentes de información y la metodología empleada en la estimación de la oferta"]
[]
[]
[]
[]
[]
[null,null,"3.2.2.3. Principales parámetros y supuestos considerados para la proyección de la oferta"]
[]
[]
[]
[null,null,"3.2.2.4. Proyección de la Oferta del Servicio Educativo"]
[null,null,"Población Escolar","Unidad de Medida ",null,"Año 1","Año 2","Año 3","Año 4","Año 5","Año 6","Año 7","Año 8","Año 9","Año 10"]
[null,null,"A. Servicio Educativo de Nivel Inicial"]
[null,null,"3 años","Alumno"]
[null,null,"4 años","Alumno"]
[null,null,"5 años","Alumno"]
[null,null,"Sub Total",null,null,{"$f":"SUM(F194:F196)","v":0},{"$f":"SUM(G194:G196)","v":0},0,0,0,0,0,0,0,0]
[null,null,"B. Servicio Educativo de Nivel Primaria"]
[null,null,"1er grado","Alumno"]
[null,null,"2do grado","Alumno"]
[null,null,"3er grado","Alumno"]
[null,null,"4to grado","Alumno"]
[null,null,"5to grado","Alumno"]
[null,null,"6to grado","Alumno"]
[null,null,"Sub Total",null,null,{"$f":"SUM(F199:F204)","v":0},{"$f":"SUM(G199:G204)","v":0},0,0,0,0,0,0,0,0]
[null,null,"C. Servicio Educativo de Nivel Secundaria"]
[null,null,"1er grado","Alumno"]
[null,null,"2do grado","Alumno"]
[null,null,"3er grado","Alumno"]
[null,null,"4to grado","Alumno"]
[null,null,"5to grado","Alumno"]
[null,null,"Sub Total",null,null,{"$f":"SUM(F207:F211)","v":0},{"$f":"SUM(G207:G211)","v":0},0,0,0,0,0,0,0,0]
[]
[null,null,"Total",null,null,{"$f":"+F197+F205+F212","v":0},{"$f":"+G197+G205+G212","v":0},{"$f":"+H197+H205+H212","v":0},{"$f":"+I197+I205+I212","v":0},{"$f":"+J197+J205+J212","v":0},0,0,0,0,0]
[]
[]
[]
[null,null,"3.2.3. BALANCE OFERTA - DEMANDA"]
[]
[null,null,"Población Escolar","Unidad de Medida ",null,"Año 1","Año 2","Año 3","Año 4","Año 5","Año 6","Año 7","Año 8","Año 9","Año 10"]
[null,null,"A. Servicio Educativo de Nivel Inicial"]
[null,null,"3 años","Alumno",null,{"$f":"F194-F152","v":0},{"$f":"G194-G152","v":0},0,0,0,0,0,0,0,0]
[null,null,"4 años","Alumno",null,{"$f":"F195-F153","v":0},0,0,0,0,0,0,0,0,0]
[null,null,"5 años","Alumno",null,{"$f":"F196-F154","v":0},0,0,0,0,0,0,0,0,0]
[null,null,"Sub Total",null,null,{"$f":"SUM(F222:F224)","v":0},{"$f":"SUM(G222:G224)","v":0},{"$f":"SUM(H222:H224)","v":0},0,0,0,0,0,0,0]
[null,null,"B. Servicio Educativo de Nivel Primaria"]
[null,null,"1er grado","Alumno",null,{"$f":"F199-F157","v":0},{"$f":"G199-G157","v":0},0,0,0,0,0,0,0,0]
[null,null,"2do grado","Alumno",null,{"$f":"F200-F158","v":0},0,0,0,0,0,0,0,0,0]
[null,null,"3er grado","Alumno",null,{"$f":"F201-F159","v":0},0,0,0,0,0,0,0,0,0]
[null,null,"4to grado","Alumno",null,{"$f":"F202-F160","v":0},0,0,0,0,0,0,0,0,0]
[null,null,"5to grado","Alumno",null,{"$f":"F203-F161","v":0},0,0,0,0,0,0,0,0,0]
[null,null,"6to grado","Alumno",null,{"$f":"F204-F162","v":0},0,0,0,0,0,0,0,0,0]
[null,null,"Sub Total",null,null,{"$f":"SUM(F227:F232)","v":0},{"$f":"SUM(G227:G232)","v":0},0,0,0,0,0,0,0,0]
[null,null,"C. Servicio Educativo de Nivel Secundaria"]
[null,null,"1er grado","Alumno",null,{"$f":"F207-F165","v":0},{"$f":"G207-G165","v":0},0,0,0,0,0,0,0,0]
[null,null,"2do grado","Alumno",null,{"$f":"F208-F166","v":0},0,0,0,0,0,0,0,0,0]
[null,null,"3er grado","Alumno",null,{"$f":"F209-F167","v":0},0,0,0,0,0,0,0,0,0]
[null,null,"4to grado","Alumno",null,{"$f":"F210-F168","v":0},0,0,0,0,0,0,0,0,0]
[null,null,"5to grado","Alumno",null,{"$f":"F211-F169","v":0},0,0,0,0,0,0,0,0,0]
[null,null,"Sub Total",null,null,{"$f":"SUM(F235:F239)","v":0},{"$f":"SUM(G235:G239)","v":0},0,0,0,0,0,0,0,0]
[]
[null,null,"Total",null,null,{"$f":"+F225+F233+F240","v":0},{"$f":"+G225+G233+G240","v":0},{"$f":"+H225+H233+H240","v":0},{"$f":"+I225+I233+I240","v":0},{"$f":"+J225+J233+J240","v":0},0,0,0,0,0]
[]
[]
[null,null,"3.3. COSTOS DEL PROYECTO"]
[]
[null,null,"3.3.1. COSTOS DE INVERSIÓN*"]
[null,null,"* Adjuntar la cadena de valor del proyecto (insumos, actividades, producto, resultado específico y resultado final). Como mínimo la estandarización debería abarcar productos y resultados específico y final."]
[null,null,"Producto",null,null,null,"Subproducto",null,null,"Unidad de subproducto",null,"Capacidad de subproducto",null,"Costo unitario (soles)","Costo subtotal (soles)"]
[null,null,"Nombre del producto","Unidad de medida representativa","Cantidad","Inversión total",null,null,null,"Unidad de medida\n(UM)","Magnitud\n(Unidad)","Unidad de medida\n(UM)","Magnitud\n(m2 AT)"]
[]
[]
[]
[]
[]
[]
[]
[]
[]
[]
[]
[]
[]
[]
[]
[]
[]
[]
[]
[null,null,"Nota: los gastos generales, utilidad e IGV no son subproductos y deberían formar parte de los items que correspondan. Ver detalle en el Anexo 4.",null,null,null,"Sub total costo de inversión",null,null,null,null,null,null,null,{"$f":"SUM(O251:O269)","v":0}]
[null,null,null,null,null,null,"Gestión del proyecto ",null,null,null,null,null,null,null,{"$f":"+O270*0.05","v":0}]
[null,null,null,null,null,null,"Inversión total a (Precios Privados)",null,null,null,null,null,null,null,{"$f":"+O271+O270","v":0}]
[null,null,"AT: Area Techada."]
[]
[null,null,"Describir y fundamentar el tipo de fuente de información empleada y la metodología de estimación de costos. En caso se considere costos para la gestión del proyecto, se deberá describir las principales actividades y recursos humanos que se emplearán."]
[]
[]
[]
[]
[]
[null,null,"3.3.2. CRONOGRAMA DE EJECUCIÓN FINANCIERA",null,null,null,null,null,null,"Cronograma (Meses)"]
[null,null,"Producto","Subproducto",null,null,"Costo subtotal (soles)","Fecha de inicio\n(DD/MM/AAAA)","Fecha de término\n(DD/MM/AAAA)","Mes 1","Mes 2","Mes 3","Mes 4","Mes 5","Mes 6"]
[]
[]
[]
[]
[]
[]
[]
[]
[]
[]
[]
[]
[]
[]
[]
[]
[]
[]
[]
[null,null,"Costo Total",null,null,null,{"$f":"SUM(G283:G301)","v":0}]
[]
[null,null,"3.3.3. CRONOGRAMA DE EJECUCIÓN FÍSICA",null,null,null,null,null,null,"Cronograma (Meses)"]
[null,null,"Producto","Subproducto",null,null,"UM y Metas \n(asociada a la unidad de subproducto)","Fecha de inicio\n(DD/MM/AAAA)","Fecha de término\n(DD/MM/AAAA)","Mes 1","Mes 2","Mes 3","Mes 4","Mes 5","Mes 6"]
[]
[]
[]
[]
[]
[]
[]
[]
[]
[]
[]
[]
[]
[]
[]
[]
[]
[]
[]
[]
[null,null,"3.3.4. COSTOS DE OPERACIÓN Y MANTENIMIENTO CON Y SIN PROYECTO"]
[null,null,"Costos",null,null,"Años (Soles)"]
[null,null,null,null,null,1,2,3,4,5,6,7,8,9,10]
[null,null,"Sin Proyecto","OPERACIÓN",null,{"$f":"SUM(F330:F333)","v":0},{"$f":"SUM(G330:G333)","v":0},0,0,0,0,0,0,0,{"$f":"SUM(O330:O333)","v":0}]
[null,null,null,"Personal"]
[null,null,null,"Bienes"]
[null,null,null,"Servicios"]
[null,null,null,"Otros"]
[null,null,null,"MANTENIMIENTO",null,{"$f":"+F335","v":0},{"$f":"+G335","v":0},0,0,0,0,0,0,0,0]
[null,null,null,"Actividades* "]
[null,null,"Con Proyecto","OPERACIÓN",null,{"$f":"SUM(F337:F340)","v":0},{"$f":"SUM(G337:G340)","v":0},0,0,0,0,0,0,0,0]
[null,null,null,"Personal"]
[null,null,null,"Bienes"]
[null,null,null,"Servicios"]
[null,null,null,"Otros"]
[null,null,null,"MANTENIMIENTO",null,{"$f":"+F342","v":0},{"$f":"+G342","v":0},0,0,0,0,0,0,0,0]
[null,null,null,"Actividades* "]
[null,null,"Incremental","OPERACIÓN",null,{"$f":"+F336-F329","v":0},{"$f":"+G336-G329","v":0},0,0,0,0,0,0,0,{"$f":"+O336-O329","v":0}]
[null,null,null,"MANTENIMIENTO",null,{"$f":"+F341-F334","v":0},{"$f":"+G341-G334","v":0},0,0,0,0,0,0,0,0]
[null,null,"* Activiades del Programa de mantenimiento (incluye infraestructura, material de limpieza, equipamiento y mobiliario)"]
[]
[null,null,"3.3.5. COSTO DE INVERSIÓN POR BENEFICIARIO DIRECTO",null,null,null,null,{"$f":"IFERROR((O272/F172),0)","v":0}]
[]
[null,null,"3.4. BENEFICIOS SOCIALES DEL PROYECTO"]
[]
[null,null,"3.4.1. DESCRIPCIÓN DE LOS BENEFICIOS SOCIALES"]
[]
[]
[]
[]
[]
[null,null,"3.4.2. LOS BENEFICIARIOS DEL HORIZONTE DEL PROYECTO",null,null,null,null,{"$f":"SUM(F172:O172)","v":0}]
[]
[null,null,"3.5. CRITERIOS DE DECISIÓN DE INVERSIÓN"]
[]
[null,null,"Nota: Adjuntar planilla electrónica del modelo de evaluación del proyecto que reuna los datos, principales variables y parámetros involucrados en la formulación y evaluación del proyecto y en la estimación de los criterios de decisión establecidos para la tipología del proyecto. "]
[null,null,"Tipo",null,"Criterio de elección",null,null,"Alternativa Única"]
[null,null,"Costo / Eficiencia*",null,"Valor Actual de los Costos (VAC)"]
[null,null,null,null,"Costo por capacidad de producción"]
[null,null,null,null,"Costo por beneficiario directo"]
[null,null,"* A precios sociales"]
[]
[null,null,"3.6. SOSTENIBILIDAD"]
[]
[null,null,"3.6.1. RESPONSABLE DE LA OPERACIÓN Y MANTENIMIENTO DEL PROYECTO"]
[]
[]
[]
[]
[]
[null,null,"3.6.2. ¿ES LA UNIDAD EJECUTORA DE INVERSIONES LA RESPONSABLE DE LA OPERACIÓN Y MANTENIMIENTO DEL PROYECTO CON CARGO A SU PRESUPUESTO INSTITUCIONAL?"]
[]
[null,null,"Documentos que sustentan los acuerdos institucionales u otros que garantizan el financiamiento de los gastos de operación y mantenimiento.",null,"Documento",null,null,"Entidad / Organización",null,null,"Compromiso de mantenimiento"]
[]
[]
[]
[]
[]
[]
[]
[null,null,"3.6.3. ¿EL ÁREA DONDE SE UBICA EL PROYECTO HA SIDO AFECTADA POR ALGÚN DESASTRE?"]
[null,null,null,"Si",null,"No"]
[]
[null,null,"Medidas consideradas en el proyecto para mitigar el riesgo de desastre"]
[null,null,"Acción 1: "]
[null,null,"Acción 2:"]
[null,null,"Acción 3:"]
[null,null,"Acción n:"]
[null,null,"* Dicha probabilidad resultará de un juicio técnico sobre que tan posible es la ocurrencia del riesgo afecte el desempeño del proyecto."]
[]
[]
[null,null,"3.7. MODALIDAD DE EJECUCIÓN Y FUENTE DE FINANCIAMIENTO"]
[]
[null,null,"A. MODALIDAD DE EJECUCIÓN DE OBRA"]
[]
[null,null,"B. FUENTE DE FINANCIAMIENTO"]
[]
[]
[null,null,"3.8. IMPACTO AMBIENTAL"]
[null,null,"Impactos Negativos",null,null,null,"Medida de Mitigación",null,null,null,null,"Costo (S/.)"]
[]
[]
[]
[]
[]
[]
[null,"IV.  MARCO LÓGICO DEL PROYECTO"]
[]
[null,null,"4.1. MATRIZ DE MARCO LOGICO"]
[null,null,"ÍTEM","OBJETIVOS",null,null,"INDICADOR",null,null,null,"MEDIOS DE VERIFICACION ",null,"SUPUESTOS"]
[null,null,null,null,null,null,"DESCRIPCIÓN",null,"META","AÑO"]
[null,null,"FIN",{"$f":"+IF(C16=\"\",\"\",\"Contribución al logro de aprendizaje de los alumnos\")","v":""},null,null,"% de alumnos que logran un nivel suficiente en comprensión de textos",null,null,null,"Estadística de la Calidad Educativa anual – ESCALE",null," Los temas educativos continúan siendo una prioridad."]
[null,null,null,null,null,null,"% de alumnos que logran un nivel suficiente en comprensión matemática",null,null,null,"Estadística de la Calidad Educativa anual – ESCALE"]
[null,null,"PROPOSITO",{"$f":"+IF(C94=\"\",\"\",C94)","v":""},null,null,{"$f":"+C97","v":""},null,null,null,"Resultadosdel informede\nevaluación"]
[null,null,null,null,null,null,{"$f":"+C96","v":""},null,null,null,{"$f":"+IF(G420=\"\",\"\",\"ESCALE\")","v":""}]
[null,null,"COMPONENTES",{"$f":"+C111","v":"Equipamiento educativo adecuado "},null,null,null,null,null,null,"Informe de evaluación de\nespacios físicos y mobiliario\n",null,"La motivación de los padres para enviar a sus hijos al colegio no sufre cambios significativos.\n\nLos agentes implicados (autoridades, profesores y padres) participan activamente en el proyecto."]
[null,null,null,{"$f":"+C112","v":""}]
[null,null,null,{"$f":"+C113","v":""}]
[null,null,null,{"$f":"+C114","v":""}]
[null,null,null,""]
[null,null,"ACTIVIDADES","Elaboración y aprobación de\nexpediente técnico",null,null,"Costo S/.",null,null,null,"Registro de publicación de TdRs y convocatoria.",null,"Existen proveedores de los bienes y servicios precisos para el proyecto y son capaces de suministrarlos en tiempo oportuno.\n\nDisponibilidad oportuna de los recursos financieros."]
[null,null,null,"Ejecución de obra.",null,null,"Costo S/."]
[null,null,null,"Supervisión y liquidación de obra",null,null,"Costo S/.",null,null,null,"Registro de revisión y entrega de expedientes técnicos"]
[null,null,null,"Elaboración y aprobación de TdR con especificaciones sobre el equipamiento",null,null,"Costo S/."]
[null,null,null,"Adquisición de equipamiento",null,null,"Costo S/.",null,null,null," Informe de supervisión de obras con periodicidad indicada"]
[null,null,null,"Elaboración y aprobación de Bases en capacitación",null,null,"Costo S/."]
[null,null,null,"Ejecución de capacitación",null,null,"Costo S/.",null,null,null,"Constancia de entrega de infraestructura, mobiliarioa la entidad encargada de prestar el servicio"]
[null,null,null,"OTROS (ESPECIFIQUE)",null,null,"Costo S/."]
[null,null,null,"OTROS (ESPECIFIQUE)",null,null,"Costo S/."]
[]
[null,"V.  CONCLUSIONES Y RECOMENDACIONES"]
[]
[null,null,"5.1. CONCLUSIONES"]
[]
[]
[]
[]
[]
[]
[null,null,"5.2. RECOMENDACIONES"]
[]
[]
[]
[]
[]
[]
[]
[null,"VI.  ANEXOS"]
[null,null,"Indicar relación de anexos a adjuntar a la Ficha Técnica."]
[]
[]
[]
[]
[]
[]
[]
[]
[null,null,"FIRMAS Y SELLOS"]
[null,null,null,null,null,null,null,null,null,null,null,"Fecha de Culminación:",null,{"$f":"TODAY()","v":"2017-08-11"}]
[]
[]
[]
[]
[null,null,null,"Responsable de la Formulación y Evaluación",null,null,null,null,null,null,"Responsable de la Unidad Formuladora"]

{"sheet":"Base_datos","index":1,"n_rows":45,"n_cols":35,"rows_kept":45,"cut":false,"hidden":true,"merged":[]}
[null,null,"INDICADORES","NATURALEZA","PROBLEMA CENTRAL","INDICADOR","INDICADOR 2","OBJETIVO CENTRAL"]
[null,null,null,null,null,null,null,null,"AÑO 0","Nivel","Zona","Inicial","Primaria","Secundaria","Tipo","Inicial","Primaria","Secundaria","Turno",null,"Tipo docente","Inicial","Primaria","Secundaria","Documentos de propiedad"]
[1,"% de la infraestructura en buen estado ","% de la infraestructura en buen estado ",null,"Población en edad escolar con limitado acceso a servicios educativos.","Tasa total de matrícula","-","Población en edad escolar con adecuado acceso a servicios educativos.",2017,"Inicial","Rural",20,30,30,"Bipersonales rural",10,15,15,"SI",null,"Polidocente",3,6,5,"Certitifcado de Posesión"]
[2,"% de equipamiento en buen estado","% de la infraestructura en mal estado",null,"Población en edad escolar con limitado e inadecuado acceso al servicio educativo","Tasa total de matrícula","% de estudiantes adecuadamente atendidos.","Población en edad escolar con mayor y adecuado acceso al servicio educativo",2018,"Primaria","Urbana",25,35,35,"Bipersonales urbana",12.5,17.5,17.5,"NO",null,"Unidocente",1,1,1,"Actas de Donación"]
[3,"% del personal con adecuadas capacidades","% de equipamiento en buen estado",null,"La población accede a servicios que no cumplen estándares sectoriales.","% de estudiantes adecuadamente atendidos.","-","La población accede a servicios que cumplen estándares sectoriales.",2019,"Secundaria",null,null,null,null,"Unipersonales rural",20,30,30,null,null,null,null,null,null,"Actas de Convenio de Cesión en Uso"]
[4,"% de intrumentos de gestión de mantenimiento adecuados en la IE","% de equipamiento en mal estado",null,"Población educativa con inadecuado acceso al servicio educativo","% de estudiantes adecuadamente atendidos.","-","Población educativa con adecuado acceso al servicio educativo",2020,null,null,null,null,null,"Unipersonales urbana",25,35,35,null,null,null,null,null,null,"Otro documento de propiedad"]
[5,"% de intrumentos de gestión de la información pedagógica de la IE","% del personal con adecuadas capacidades",null,null,null,null,null,2021,null,null,null,null,null,null,null,null,null,null,null,null,null,null,null,"No se disponde de documento de propiedad"]
[null,"% de intrumentos de gestión de la información institucional de la IE","% de personal con inadecuadas capacidades",null,null,null,null,null,2022]
[null,null,"% de intrumentos de gestión de mantenimiento adecuados en la IE",null,null,null,null,null,2023]
[null,null,"% de intrumentos de gestión de la información pedagógica de la IE",null,null,null,null,null,2024]
[null,null,"% de intrumentos de gestión de la información institucional de la IE",null,null,null,null,null,2025,null,null,null,null,null,null,null,"Tipo de intervención",null,null,null,"Nombre d ela oficina"]
[null,null,null,null,null,null,null,null,2026,null,null,null,null,null,null,null,"CALIDAD",null,null,null,"REGISTROS PÚBLICOS"]
[null,null,null,null,null,null,null,null,2027,null,null,null,null,null,null,null,"COBERTURA",null,null,null,"UGEL"]
[null,null,null,null,null,null,null,null,2028,null,null,null,null,null,null,null,"CALIDAD Y COBERTURA",null,null,null,"MINEDU"]
[null,null,null,null,null,null,null,null,2029,null,null,null,null,null,null,null,null,null,null,null,"DRE"]
[null,null,null,"NATURALEZA",null,null,null,null,2030,null,null,null,null,null,null,null,null,null,null,null,"GOBIERNO REGIONAL"]
[null,null,null,"CREACION","MEJORAMIENTO","AMPLIACIÓN","MEJORAMIENTO Y AMPLIACIÓN","RECUPERACIÓN",2031,null,null,null,null,null,null,null,null,null,null,null,"GOBIERNO MUNICIPAL"]
[null,null,"PROBLEMA CENTRAL","Población en edad escolar con limitado acceso a servicios educativos.","La población accede a servicios que no cumplen estándares sectoriales.","Población en edad escolar con limitado acceso a servicios educativos.","Población en edad escolar con limitado e inadecuado acceso al servicio educativo","La población accede a servicios que no cumplen estándares sectoriales.",2032,null,null,null,null,null,null,null,null,null,null,null,"GOBIERNO CENTRAL"]
[null,null,"CAUSA DIRECTA 1","Limitada oferta educativa","Inadecuada oferta educativa","Limitada oferta educativa","Inadecuada e insuficiente oferta educativa","Inadecuada oferta educativa",2033,null,null,null,null,null,null,null,null,null,null,null,"PRIVADO"]
[null,null,"CAUSA DIRECTA 2","Inadecuada gestión de los servicios educativos","Inadecuada gestión de los servicios educativos","Inadecuada gestión de los servicios educativos","Inadecuada gestión de los servicios educativos","Inadecuada gestión de los servicios educativos",2034,null,null,null,null,null,null,null,null,null,null,null,"ONG"]
[null,null,null,null,null,null,null,null,2035,null,null,null,null,null,null,null,null,null,null,null,"OTROS"]
[null,null,null,null,null,null,null,null,2036,null,null,null,null,null,null,null,null,null,null,null,"NO PRESENTA"]
[null,null,"MEDIOS FUNDAMENTALES","Adecuada localización de la IE","Infraestructura  cumple con estándares normativos","Suficiente infraestructura educativa","Equipamiento educativo adecuado ","Suficiente equipamiento educativo","Suficiente y adecuada infraestructura educativa","Suficiente y adecuado equipamiento educativo","Adecuadas capacidades pedagógicas docente","Adecuada gestión de la información educativa (matrícula, indicadores educativos)","Adecuada gestión de la información institucional (inventario de equipos, mobiliario, seguimiento desempeño pedagógico,otros)"]
[null,null,"ACCIÓN 1","Intervención en ambientes pedagógicos","Intervención en ambientes pedagógicos","Construcción de ambientes pedagógicos","Implementación de equipamiento educativo","Implementación de equipamiento educativo","Construcción de ambientes pedagógicos","Implementación de equipamiento educativo","Capacitación al personal docente","Protocolo de gestión de información educativa","Protocolo de gestión de información institucional"]
[null,null,"ACCIÓN 2","Intervención en ambientes administrativos","Intervención en ambientes administrativos","Construcción de ambientes administrativos","Implementación de equipamiento administrativo","Implementación de equipamiento administrativo","Construcción de ambientes administrativos","Implementación de equipamiento administrativo","No requiere","No requiere","No requiere"]
[null,null,"ACCIÓN 3","Intervención de ambientes complementarios","Intervención de ambientes complementarios","Construcción de ambientes complementarios","Programa de operación y mantenimiento del equipamiento","Programa de operación y mantenimiento del equipamiento","Construcción de ambientes complementarios","Programa de operación y mantenimiento del equipamiento","No requiere","No requiere","No requiere"]
[null,null,"ACCIÓN 4","Intervención de ambientes exteriores","Intervención de ambientes exteriores","Construcción de ambientes exteriores","No requiere","No requiere","Construcción de ambientes exteriores","No requiere","No requiere","No requiere","No requiere"]
[null,null,"ACCIÓN 5","Implementación de TICs","Implementación de TICs","Implementación de TICs","No requiere","No requiere","Implementación de TICs","No requiere","No requiere","No requiere","No requiere"]
[null,null,"ACCIÓN 6","Programa de operación y mantenimiento de la infraestructura ","Programa de operación y mantenimiento de la infraestructura ","Programa de operación y mantenimiento de la infraestructura ","No requiere","No requiere","Programa de operación y mantenimiento de la infraestructura ","No requiere","No requiere","No requiere","No requiere"]
[null,null,"ACCIÓN 7","No requiere","No requiere","No requiere","No requiere","No requiere","No requiere","No requiere","No requiere","No requiere","No requiere",null,null,null,null,null,null,null,null,null,null,null,null,null,null,null,null,null,null,null,null,null,{"$f":"+INDEX(Base_datos!K2:N4,coin)","v":{"$error":"#NAME?"}}]
[null,null,"ACCIÓN 8"]
[]
[null,null,"CAUSAS DIRECTAS","CAUSAS INDIRECTAS","MEDIOS FUNDAMENTALES","ACCIONES (PAQUETES DE TRABAJO)"]
[null,null,"Inadecuada oferta educativa",null,null,"Construcción de ambientes pedagógicos"]
[null,null,"Inadecuada e insuficiente oferta educativa","Infraestructura no cumple con estándares normativos","Infraestructura  cumple con estándares normativos","Construcción de ambientes administrativos"]
[null,null,"Limitada oferta educativa","Déficit de infraestructura educativa","Suficiente infraestructura educativa","Construcción de ambientes complementarios"]
[null,null,"Inadecuada gestión de los servicios educativos","Equipamiento educativo Inadecuado ","Equipamiento educativo adecuado ","Construcción de ambientes exteriores"]
[null,null,null,"Déficit de equipamiento educativo","Suficiente equipamiento educativo","Implementación de TICs"]
[null,null,null,"Limitada e inadecuada infraestructura educativa","Suficiente y adecuada infraestructura educativa","Programa de operación y mantenimiento de la infraestructura "]
[null,null,null,"Limitada e inadecuado equipamiento educativo","Suficiente y adecuado equipamiento educativo","Implementación de equipamiento educativo"]
[null,null,null,"Déficit de capacidades pedagógicas docente","Adecuadas capacidades pedagógicas docente","Implementación de equipamiento administrativo"]
[null,null,null,"Inadecuada gestión de la información educativa (matrícula, indicadores educativos)","Adecuada gestión de la información educativa (matrícula, indicadores educativos)","Programa de operación y mantenimiento del equipamiento"]
[null,null,null,"Inadecuada gestión de la información institucional (inventario de equipos, mobiliario, seguimiento desempeño pedagógico,otros)","Adecuada gestión de la información institucional (inventario de equipos, mobiliario, seguimiento desempeño pedagógico,otros)","Capacitación al personal docente"]
[null,null,null,null,null,"Protocolo de gestión de información educativa"]
[null,null,null,null,null,"Protocolo de gestión de información institucional"]

{"sheet":"D1","index":2,"n_rows":139,"n_cols":23,"rows_kept":139,"cut":false,"hidden":true,"merged":[]}
[]
["Naturaleza","Objeto ","Tipo de intervención no PIP","Servicios a intervenir","Indicador de Brecha","Indicar activo ","Zona","Región","Adjuntó","Nivel de gobierno","GOBIERNO REGINOAL","Grupo Funcional","Estado","Antigüedad","Modalidad de ejecución","Fuente de financiamiento","Mes","Año","Peligros","Medidas de Reducción de Riesgos"]
["CREACION","SERVICIO DE EDUCACIÓN INICIAL","AMPLIACIÓN MARGINAL","SERVICIO DE EDUCACIÓN INICIAL","% locales educativos con educación inicial que contiene capacidad instalada inadecuada ","SI CUENTA","Rural","Costa","Si ","GOBIERNO REGIONAL","GOBIERNO REGIONAL AMAZONAS","0103: EDUCACIÓN INICIAL","REGULAR",1,"ADMINISTRACIÓN DIRECTA","RECURSOS ORDINARIOS",1,2017,"Sismos \u0084 ",null,"ALTA","BAJO ","OPERACIONAL"]
["MEJORAMIENTO","SERVICIO DE EDUCACIÓN PRIMARIA","OPTIMIZACIÓN","SERVICIO DE EDUCACIÓN PRIMARIA","% personas no matriculadas en el nivel inicial respecto a la demanda potencial","NO CUENTA","Urbana","Sierra","No","GOBIERNO NACIONAL","GOBIERNO REGIONAL ANCASH","0104: EDUCACIÓN PRIMARIA\n","MALO",2,"ADMINISTRACIÓN INDIRECTA - POR CONTRATA","RECURSOS DIRECTAMENTE RECAUDADOS ",2,2018,"Tsunamis \u0084 ",null,"BAJA","MODERADO","CAMBIO CLIMÁTICO"]
["RECUPERACIÓN","SERVICIO DE EDUCACIÓN SECUNDARIA","OPTIMIZACIÓN (ADQ. TERRENOS)","SERVICIO DE EDUCACIÓN SECUNDARIA","% locales educativos con educación primaria que contiene capacidad instalada inadecuada ",null,null,"Selva",null,"GOBIERNO LOCAL","GOBIERNO REGIONAL APURIMAC","0105: EDUCACIÓN SECUNDARIA","MUY MALO",3,"ADMINISTRACIÓN INDIRECTA - NÚCLEO EJECUTOR"," RECURSOS POR OPERACIONES OFICIALES DE CREDITO ",3,2019,"Heladas \u0084 ",null,"MEDIA","MAYOR","MERCADO"]
["AMPLIACIÓN","SERVICIO DE EDUCACIÓN BÁSICA ALTERNATIVA","REHABILITACIÓN",null,"% personas no matriculadas en el nivel primaria respecto a la demanda potencial ",null,null,null,null,"MANCOMUNIDAD (GR, GL)","GOBIERNO REGIONAL AREQUIPA","0106: EDUCACIÓN BÁSICA ALTERNATIVA","IRRECUPERABLE",4,"ADMINISTRACIÓN INDIRECTA -OBRA POR IMPUESTOS","DONACIONES Y TRANSFERENCIAS",4,2020,"Erupciones volcánicas \u0084 ",null,null,null,"FINANCIERO"]
["MEJORAMIENTO Y AMPLIACIÓN","","REPOSICIÓN",null,"% locales educativos con educación secundaria que contiene capacidad instalada inadecuada ",null,null,null,null,null,"GOBIERNO REGIONAL AYACUCHO","0107: EDUCACIÓN BÁSICA ESPECIAL",null,5,"ADMINISTRACIÓN INDIRECTA-APP","RECURSOS DETERMINADOS",5,2021,"Sequías \u0084 ",null,null,null,"LEGAL"]
[null,null,null,null,"% personas no matriculadas en el nivel Secundaria respecto a la demanda potencial ",null,null,null,null,null,"GOBIERNO REGIONAL CAJAMARCA",null,null,6,null,null,6,2022,"Granizadas \u0084 "]
[null,null,null,null,null,null,null,null,null,null,"GOBIERNO REGIONAL CALLAO",null,null,7,null,null,7,2023,"Inundaciones"]
["Inicial",null,null,null,null,null,null,null,null,null,"GOBIERNO REGIONAL CUSCO",null,null,8,null,null,8,2024,"Huaycos","operacional, contexto de cambio climático, mercado, financiero, legal"]
["Primaria",null,null,null,null,null,null,null,null,null,"GOBIERNO REGIONAL HUANCAVELICA",null,null,9,null,null,9,2025,"Deslizamientos"]
["Secundaria",null,null,null,null,null,null,null,null,null,"GOBIERNO REGIONAL HUÁNUCO",null,null,10,null,null,10,2026,"Desertificación"]
[null,null,null,null,null,null,null,null,null,null,"GOBIERNO REGIONAL ICA",null,null,11,null,null,11,2027,"Salinización de suelos"]
[null,null,null,null,null,null,null,null,null,null,"GOBIERNO REGIONAL JUNÍN",null,null,12,null,null,12,2028]
[null,null,null,null,null,null,null,null,null,null,"GOBIERNO REGIONAL LA LIBERTAD",null,null,13,null,null,null,2029]
[null,null,null,null,null,null,null,null,null,null,"GOBIERNO REGIONAL LAMBAYEQUE",null,null,14,null,null,null,2030]
[null,null,null,null,null,null,null,null,null,null,"GOBIERNO REGIONAL LIMA",null,null,15,null,null,null,2031]
[null,null,null,null,null,null,null,null,null,null,"GOBIERNO REGIONAL LIMA METROPOLITANA",null,null,16,null,null,null,2032]
[null,null,null,null,null,null,null,null,null,null,"GOBIERNO REGIONAL LORETO",null,null,17,null,null,null,2033]
[null,null,null,null,null,null,null,null,null,null,"GOBIERNO REGIONAL MADRE DE DIOS",null,null,18,null,null,null,2034]
[null,null,null,null,null,null,null,null,null,null,"GOBIERNO REGIONAL MOQUEGUA",null,null,19,null,null,null,2035]
[null,null,null,null,null,null,null,null,null,null,"GOBIERNO REGIONAL PASCO",null,null,20,null,null,null,2036]
[null,null,null,null,null,null,null,null,null,null,"GOBIERNO REGIONAL PIURA",null,null,21,null,null,null,2037]
[null,null,null,null,null,null,null,null,null,null,"GOBIERNO REGIONAL PUNO",null,null,22,null,null,null,2038]
[null,null,null,null,null,null,null,null,null,null,"GOBIERNO REGIONAL SAN MARTÍN",null,null,23,null,null,null,2039]
[null,null,null,null,null,null,null,null,null,null,"GOBIERNO REGIONAL TACNA",null,null,24,null,null,null,2040]
[null,null,null,null,null,null,null,null,null,null,"GOBIERNO REGIONAL TUMBES",null,null,25,null,null,null,2041]
[null,null,null,null,null,null,null,null,null,null,"GOBIERNO REGIONAL UCAYALI",null,null,26,null,null,null,2042]
[null,null,"Inversiones de reposición:",null,null,null,null,null,null,null,null,null,null,27,null,null,null,2043]
[null,null,null,null,null,null,null,null,null,null,null,null,null,28,null,null,null,2044]
[null,null,"Reconstrucción total de cerco perimétrico.",null,null,null,null,null,null,null,null,null,null,29,null,null,null,2045]
[null,null,"Reconstrucción total de Aulas colapsadas.",null,null,null,null,null,null,null,null,null,null,30,null,null,null,2046]
[null,null,"Reconstrucción total de Servicios Higiénicos.",null,null,null,null,null,null,null,null,null,null,31,null,null,null,2047]
[null,null,"Reconstrucción total de edificaciones administrativas.",null,null,null,null,null,null,null,null,null,null,32,null,null,null,2048]
[null,null,"Reconstrucción total de patio y/o losa deportiva.",null,null,null,null,null,null,null,null,null,null,33,null,null,null,2049]
[null,null,"Reconstrucción de veredas y/o circulaciones (gradas rampas).",null,null,null,null,null,null,null,null,null,null,34]
[null,null,"Reconstrucción de muro de contención.",null,null,null,null,null,null,null,null,null,null,35]
[null,null,"Reposición de mobiliario educativo (mesas y sillas alumnos y docentes).",null,null,null,null,null,null,null,null,null,null,36]
[null,null,"Reposición de Equipos (computadoras).",null,null,null,null,null,null,null,null,null,null,37]
[null,null,"Reconstrucción de sistema de drenaje pluvial en el local educativo.",null,null,null,null,null,null,null,null,null,null,38]
[null,null,null,null,null,null,null,null,null,null,null,null,null,39]
[null,null,"Inversiones de rehabilitación",null,null,null,null,null,null,null,null,null,null,40]
[null,null,null,null,null,null,null,null,null,null,null,null,null,41]
[null,null,"Reforzamiento de Aulas, que presentan grietas y fisuras en su sistema estructural (columnas, vigas, muros).",null,null,null,null,null,null,null,null,null,null,42]
[null,null,"Reforzamiento de techos de aulas.",null,null,null,null,null,null,null,null,null,null,43]
[null,null,"Reforzamiento de edificaciones administrativas, que presentan grietas y fisuras en su sistema estructural.",null,null,null,null,null,null,null,null,null,null,44]
[null,null,"Rehabilitación de Servicios Higiénicos (redes sanitarias de agua y desagüe, aparatos sanitarios).",null,null,null,null,null,null,null,null,null,null,45]
[null,null,"Rehabilitación del sistema de desagüe en los locales educativos (registros, tuberías, biodigestor).",null,null,null,null,null,null,null,null,null,null,46]
[null,null,"Rehabilitación de las instalaciones eléctricas internas (redes eléctricas, tableros, pozo de tierra).",null,null,null,null,null,null,null,null,null,null,47]
[null,null,"Rehabilitación de carpintería en Aulas (cambio de puertas, cambio de ventanas).",null,null,null,null,null,null,null,null,null,null,48]
[null,null,"Reforzamiento en muros de cerco perimétrico.",null,null,null,null,null,null,null,null,null,null,49]
[null,null,"Reforzamiento en muros de contención.",null,null,null,null,null,null,null,null,null,null,50]
[null,null,"Rehabilitación de veredas y/o circulaciones (gradas rampas).",null,null,null,null,null,null,null,null,null,null,51]
[null,null,"Rehabilitación de sistema de drenaje pluvial en el local educativo.",null,null,null,null,null,null,null,null,null,null,52]
[null,null,"Rehabilitación de coberturas solares.",null,null,null,null,null,null,null,null,null,null,53]
[null,null,null,null,null,null,null,null,null,null,null,null,null,54]
[null,null,null,null,null,null,null,null,null,null,null,null,null,55]
[null,null,null,null,null,null,null,null,null,null,null,null,null,56]
[null,null,null,null,null,null,null,null,null,null,null,null,null,57]
[null,null,null,null,null,null,null,null,null,null,null,null,null,58]
[null,null,null,{"$f":"+E61&F61","v":"SERVICIO DE EDUCACIÓN INICIALCALIDAD"},"SERVICIO DE EDUCACIÓN INICIAL","CALIDAD","% locales educativos con educación inicial que contiene capacidad instalada inadecuada ","-",null,null,null,null,null,59]
[null,null,null,{"$f":"+E62&F62","v":"SERVICIO DE EDUCACIÓN PRIMARIACALIDAD"},"SERVICIO DE EDUCACIÓN PRIMARIA","CALIDAD","% locales educativos con educación primaria que contiene capacidad instalada inadecuada ","-",null,null,null,null,null,60]
[null,null,null,"SERVICIO DE EDUCACIÓN SECUNDARIACALIDAD","SERVICIO DE EDUCACIÓN SECUNDARIA","CALIDAD","% locales educativos con educación secundaria que contiene capacidad instalada inadecuada ","-",null,null,null,null,null,61]
[null,null,null,"SERVICIO DE EDUCACIÓN INICIALCOBERTURA","SERVICIO DE EDUCACIÓN INICIAL","COBERTURA","% personas no matriculadas en el nivel inicial respecto a la demanda potencial","-",null,null,null,null,null,62]
[null,null,null,"SERVICIO DE EDUCACIÓN PRIMARIACOBERTURA","SERVICIO DE EDUCACIÓN PRIMARIA","COBERTURA","% personas no matriculadas en el nivel primaria respecto a la demanda potencial ","-",null,null,null,null,null,63]
[null,null,null,"SERVICIO DE EDUCACIÓN SECUNDARIACOBERTURA","SERVICIO DE EDUCACIÓN SECUNDARIA","COBERTURA","% personas no matriculadas en el nivel Secundaria respecto a la demanda potencial ","-",null,null,null,null,null,64]
[null,null,null,"SERVICIO DE EDUCACIÓN INICIALCOBERTURA","SERVICIO DE EDUCACIÓN INICIAL","COBERTURA","% personas no matriculadas en el nivel inicial respecto a la demanda potencial","-",null,null,null,null,null,65]
[null,null,null,"SERVICIO DE EDUCACIÓN PRIMARIACOBERTURA","SERVICIO DE EDUCACIÓN PRIMARIA","COBERTURA","% personas no matriculadas en el nivel primaria respecto a la demanda potencial ","-",null,null,null,null,null,66]
[null,null,null,"SERVICIO DE EDUCACIÓN SECUNDARIACOBERTURA","SERVICIO DE EDUCACIÓN SECUNDARIA","COBERTURA","% personas no matriculadas en el nivel Secundaria respecto a la demanda potencial ","-",null,null,null,null,null,67]
[null,null,null,"SERVICIO DE EDUCACIÓN INICIALCALIDAD Y COBERTURA","SERVICIO DE EDUCACIÓN INICIAL","CALIDAD Y COBERTURA","% locales educativos con educación inicial que contiene capacidad instalada inadecuada ","% personas no matriculadas en el nivel inicial respecto a la demanda potencial",null,null,null,null,null,68]
[null,null,null,"SERVICIO DE EDUCACIÓN PRIMARIACALIDAD Y COBERTURA","SERVICIO DE EDUCACIÓN PRIMARIA","CALIDAD Y COBERTURA","% locales educativos con educación primaria que contiene capacidad instalada inadecuada ","% personas no matriculadas en el nivel primaria respecto a la demanda potencial ",null,null,null,null,null,69]
[null,null,null,"SERVICIO DE EDUCACIÓN SECUNDARIACALIDAD Y COBERTURA","SERVICIO DE EDUCACIÓN SECUNDARIA","CALIDAD Y COBERTURA","% locales educativos con educación secundaria que contiene capacidad instalada inadecuada ","% personas no matriculadas en el nivel Secundaria respecto a la demanda potencial ",null,null,null,null,null,70]
[null,null,null,null,null,null,null,null,null,null,null,null,null,71]
[null,null,null,null,null,null,null,null,null,null,null,null,null,72]
[null,null,null,null,null,null,null,null,null,null,null,null,null,73]
[null,null,null,"CAUSAS DIRECTAS","CAUSAS INDIRECTAS","MEDIOS FUNDAMENTALES","ACCIONES (PAQUETES DE TRABAJO)","CÓDIGO","N°","PRODUCTO",null,null,null,74]
[null,null,null,"Inadecuada oferta educativa",null,null,"Construcción de ambientes pedagógicos",{"$f":"+MID($G$76,1,2)&0&I77","v":"AC01"},1,"Infraestructura",null,null,null,75]
[null,null,null,"Inadecuada e insuficiente oferta educativa","Infraestructura no cumple con estándares normativos","Infraestructura  cumple con estándares normativos","Construcción de ambientes administrativos","AC02",2,"Infraestructura",null,null,null,76]
[null,null,null,"Limitada oferta educativa","Déficit de infraestructura educativa","Suficiente infraestructura educativa","Construcción de ambientes complementarios","AC03",3,"Infraestructura",null,null,null,77]
[null,null,null,"Inadecuada gestión de los servicios educativos","Equipamiento educativo Inadecuado ","Equipamiento educativo adecuado ","Construcción de ambientes exteriores","AC04",4,"Infraestructura",null,null,null,78]
[null,null,null,"No requiere","Déficit de equipamiento educativo","Suficiente equipamiento educativo","Implementación de TICs","AC05",5,"Infraestructura",null,null,null,79]
[null,null,null,null,"Limitada e inadecuada infraestructura educativa","Suficiente y adecuada infraestructura educativa","Programa de operación y mantenimiento de la infraestructura ","AC06",6,"Infraestructura",null,null,null,80]
[null,null,null,null,"Limitada e inadecuado equipamiento educativo","Suficiente y adecuado equipamiento educativo","Implementación de equipamiento educativo","AC07",7,"Equipamiento",null,null,null,81]
[null,null,null,null,"Déficit de capacidades pedagógicas docente","Adecuadas capacidades pedagógicas docente","Implementación de equipamiento administrativo","AC08",8,"Equipamiento",null,null,null,82]
[null,null,null,null,"Inadecuada gestión de la información educativa (matrícula, indicadores educativos)","Adecuada gestión de la información educativa (matrícula, indicadores educativos)","Programa de operación y mantenimiento del equipamiento","AC09",9,"Equipamiento",null,null,null,83]
[null,null,null,null,"Inadecuada gestión de la información institucional (inventario de equipos, mobiliario, seguimiento desempeño pedagógico,otros)","Adecuada gestión de la información institucional (inventario de equipos, mobiliario, seguimiento desempeño pedagógico,otros)","Capacitación al personal docente","AC010",10,"Capacidades",null,null,null,84]
[null,null,null,null,"No requiere",null,"Protocolo de gestión de información educativa","AC011",11,"Gestión",null,null,null,85]
[null,null,null,null,null,null,"Protocolo de gestión de información institucional","AC012",12,"Gestión",null,null,null,86]
[null,null,null,null,null,null,null,null,null,null,null,null,null,87]
[null,null,null,null,null,null,null,null,null,null,null,null,null,88]
[null,null,null,null,null,"MEDIOS FUNDAMENTALES","ACCIONES (PAQUETES DE TRABAJO)","CÓDIGO","N°","PRODUCTO",null,null,null,89]
[null,null,null,null,null,"Adecuada localización de la IE","Construcción de ambientes pedagógicos",{"$f":"+MID($G$76,1,2)&0&I92","v":"AC01"},1,"Infraestructura",{"$f":"+HLOOKUP($F$77,$F$92:$G$97,1,FALSE)","v":{"$error":"#N/A"}},null,null,90]
[null,null,null,null,null,"Adecuada localización de la IE","Construcción de ambientes administrativos","AC02",2,"Infraestructura",{"$f":"+VLOOKUP($F$77,$F$92:$G$97,3,FALSE)","v":{"$error":"#N/A"}},null,null,91]
[null,null,null,"EFECTOS DIRECTOS","EFECTOS INDIRECTOS","Adecuada localización de la IE","Construcción de ambientes complementarios","AC03",3,"Infraestructura",{"$f":"+VLOOKUP($F$77,$F$92:$G$97,2,FALSE)","v":{"$error":"#N/A"}},null,null,92]
[null,null,null,"Reducido nivel de desempeño del alumno.","Atraso escolar.","Adecuada localización de la IE","Construcción de ambientes exteriores","AC04",4,"Infraestructura",{"$f":"+VLOOKUP($F$77,$F$92:$G$97,2,FALSE)","v":{"$error":"#N/A"}},null,null,93]
[null,null,null,"Ingreso tardío al servicio educativo según nivel educativo.","Aumento de la deserción escolar","Adecuada localización de la IE","Implementación de TICs","AC05",5,"Infraestructura",{"$f":"+VLOOKUP($F$77,$F$92:$G$97,2,FALSE)","v":{"$error":"#N/A"}},null,null,94]
[null,null,null,null,"Reducido logro de aprendizaje de los alumnos.","Adecuada localización de la IE","Programa de operación y mantenimiento de la infraestructura ","AC06",6,"Infraestructura",{"$f":"+VLOOKUP($F$77,$F$92:$G$97,2,FALSE)","v":{"$error":"#N/A"}},null,null,95]
[null,null,null,null,null,null,"Implementación de equipamiento educativo","AC07",7,"Equipamiento",null,null,null,96]
[null,null,"TIPOS DE DOCUMENTOS","INVOLUCRADO","FUENTE",null,"Implementación de equipamiento administrativo","AC08",8,"Equipamiento",null,null,null,"CONTRIBUCIÓN"]
[null,null,"Acta de Compromiso de Operación y Mantenimiento","Dirección Regional de Educación (DRE)","INEI",null,"Programa de operación y mantenimiento del equipamiento","AC09",9,"Equipamiento",null,null,null,98]
[null,null,"Resolución de Alcaldía","Unidad de Gestión Educativa Local (UGEL)","ESCALE",null,"Capacitación al personal docente","AC010",10,"Capacidades",null,null,null,99]
[null,null,"Acuerdo de Concejo Municipal","Gobierno Regional","ENCUESTA DE CAMPO - ADJUNTAR A LA FICHA",null,"Protocolo de gestión de información educativa","AC011",11,"Gestión"]
[null,null,"Acuerdo de Consejo Regional","Gobierno Local","INSTITUCIÓN EDUCATIVA",null,"Protocolo de gestión de información institucional","AC012",12,"Gestión"]
[null,null,"Resolución del Gobierno Regional","Dirección de la IE","UGEL"]
[null,null,"Resolución Ministerial","APAFA","DRE","Infraestructura  cumple con estándares normativos"]
[null,null,"Resolución Directoral","Beneficiarios"]
[null,null,"Otro","Sector Privado"]
[null,null,null,"Otros"]
[]
[]
[]
[]
[]
[null,null,null,null,null,"Suficiente infraestructura educativa"]
[]
[]
[]
[null,null,null,null,null,"Equipamiento educativo adecuado "]
[null,null,null,null,null,"Suficiente equipamiento educativo"]
[null,null,null,null,null,"Suficiente y adecuada infraestructura educativa"]
[null,null,null,null,null,"Suficiente y adecuado equipamiento educativo"]
[null,null,null,null,null,"Adecuadas capacidades pedagógicas docente"]
[null,null,null,null,null,"Adecuada gestión de la información educativa (matrícula, indicadores educativos)"]
[null,null,null,null,null,"Adecuada gestión de la información institucional (inventario de equipos, mobiliario, seguimiento desempeño pedagógico,otros)"]
[]
[]
[]
[]
[null,null,null,"3.7.2. ¿ES LA UNIDAD EJECUTORA DE INVERSIONES LA RESPONSABLE DE LA OPERACIÓN Y MANTENIMIENTO DEL PROYECTO CON CARGO A SU PRESUPUESTO INSTITUCIONAL?"]
[null,null,null,"SI"]
[null,null,null,"NO"]
[null,null,null,"PARCIALMENTE"]
[null,null,null,"NO APLICA"]
[]
[]
[]
[null,null,null,"MARCO LÓGICO"]
[null,null,null,"ACTIVIDADES","INIDICADORES","MEDIOS DE VERIFICACIÓN","SUPUESTOS"]
[null,null,null,"Elaboración y aprobación de "]